[Event "*** Titled Tuesday Blitz"]
[Site "Chess.com"]
[Date "2020.04.07"]
[Round "7"]
[White "vovachesss"]
[Black "freshfoodcompany"]
[Result "1-0"]
[WhiteElo "2612"]
[BlackElo "2217"]
[TimeControl "180+1"]
[EndTime "14:17:38 PDT"]
[Termination "vovachesss won by checkmate"]

1. e4 {[%clk 0:03:00.3]} 1... c5 {[%clk 0:02:59.6]} 2. d4 {[%clk 0:02:54.6]}
2... cxd4 {[%clk 0:02:59.4]} 3. c3 {[%clk 0:02:55]} 3... dxc3 {[%clk 0:02:58.8]}
4. Nxc3 {[%clk 0:02:55.9]} 4... Nc6 {[%clk 0:02:58.8]} 5. Nf3 {[%clk 0:02:55.3]}
5... g6 {[%clk 0:02:58.8]} 6. Bc4 {[%clk 0:02:55.2]} 6... Bg7 {[%clk 0:02:58.4]}
7. h4 {[%clk 0:02:54.5]} 7... e6 {[%clk 0:02:58]} 8. h5 {[%clk 0:02:54.7]} 8...
Nge7 {[%clk 0:02:54.6]} 9. h6 {[%clk 0:02:48.6]} 9... Bxc3+ {[%clk 0:02:52.7]}
10. bxc3 {[%clk 0:02:48.2]} 10... Qc7 {[%clk 0:02:50.7]} 11. Bb3 {[%clk
0:02:44.7]} 11... Na5 {[%clk 0:02:42.3]} 12. Qd4 {[%clk 0:02:37.9]} 12... Rg8
{[%clk 0:02:27.9]} 13. Ba3 {[%clk 0:02:36.6]} 13... Nxb3 {[%clk 0:02:25.5]} 14.
axb3 {[%clk 0:02:30.4]} 14... d5 {[%clk 0:02:20.3]} 15. O-O {[%clk 0:02:25.4]}
15... Bd7 {[%clk 0:02:15.5]} 16. Ne5 {[%clk 0:02:21.7]} 16... Nc6 {[%clk
0:02:10.2]} 17. Nxc6 {[%clk 0:02:18.1]} 17... Bxc6 {[%clk 0:02:10.1]} 18. Qf6
{[%clk 0:02:18.3]} 18... Qd8 {[%clk 0:02:04.2]} 19. Qf4 {[%clk 0:02:18.2]} 19...
Qd7 {[%clk 0:01:56.9]} 20. Rfd1 {[%clk 0:02:03.2]} 20... O-O-O {[%clk
0:01:46.1]} 21. e5 {[%clk 0:01:24.9]} 21... Qc7 {[%clk 0:01:36.3]} 22. Bd6
{[%clk 0:01:23.2]} 22... Qb6 {[%clk 0:01:31.7]} 23. b4 {[%clk 0:01:23.3]} 23...
a6 {[%clk 0:01:22]} 24. Ra5 {[%clk 0:01:18.5]} 24... Rd7 {[%clk 0:01:17.5]} 25.
Rc5 {[%clk 0:01:15.1]} 25... Kd8 {[%clk 0:01:12.6]} 26. Qf6+ {[%clk 0:01:11.6]}
26... Ke8 {[%clk 0:01:07.2]} 27. Qg7 {[%clk 0:01:09]} 27... Rxg7 {[%clk
0:00:39.1]} 28. hxg7 {[%clk 0:01:09.1]} 28... Rxd6 {[%clk 0:00:29.3]} 29. g8=Q+
{[%clk 0:01:09.2]} 29... Ke7 {[%clk 0:00:26]} 30. exd6+ {[%clk 0:01:08.7]} 30...
Kxd6 {[%clk 0:00:24.9]} 31. Qf8+ {[%clk 0:01:05.4]} 31... Ke5 {[%clk 0:00:20.7]}
32. Qe7 {[%clk 0:00:55.4]} 32... f5 {[%clk 0:00:18.9]} 33. Re1+ {[%clk
0:00:53.3]} 33... Kf4 {[%clk 0:00:17.7]} 34. Qh4# {[%clk 0:00:54.2]} 1-0

[Event "*** Titled Tuesday Blitz"]
[Site "Chess.com"]
[Date "2020.04.07"]
[Round "7"]
[White "TomPolgar"]
[Black "Ariadna_Atreides"]
[Result "1-0"]
[WhiteElo "2313"]
[BlackElo "2041"]
[TimeControl "180+1"]
[EndTime "14:17:43 PDT"]
[Termination "TomPolgar won by resignation"]

1. e4 {[%clk 0:03:00.9]} 1... c5 {[%clk 0:02:38.8]} 2. Nf3 {[%clk 0:02:58.5]}
2... d6 {[%clk 0:02:38.8]} 3. Bb5+ {[%clk 0:02:58.1]} 3... Bd7 {[%clk
0:02:38.1]} 4. Bxd7+ {[%clk 0:02:58]} 4... Qxd7 {[%clk 0:02:38.7]} 5. O-O {[%clk
0:02:56.6]} 5... Nf6 {[%clk 0:02:38]} 6. e5 {[%clk 0:02:56.7]} 6... dxe5 {[%clk
0:02:37.5]} 7. Nxe5 {[%clk 0:02:57.6]} 7... Qc8 {[%clk 0:02:37.9]} 8. Nc3 {[%clk
0:02:46.6]} 8... e6 {[%clk 0:02:35.7]} 9. d3 {[%clk 0:02:45.3]} 9... Bd6 {[%clk
0:02:31.9]} 10. Nc4 {[%clk 0:02:43]} 10... Be7 {[%clk 0:02:23.6]} 11. Bf4 {[%clk
0:02:34.1]} 11... O-O {[%clk 0:02:13.3]} 12. Nb5 {[%clk 0:01:58.2]} 12... Nd5
{[%clk 0:02:11.7]} 13. Bg3 {[%clk 0:01:58]} 13... Nc6 {[%clk 0:02:08.4]} 14. c3
{[%clk 0:01:40.7]} 14... a6 {[%clk 0:02:06.6]} 15. Nbd6 {[%clk 0:01:38.7]} 15...
Qd7 {[%clk 0:02:05.5]} 16. a4 {[%clk 0:01:35.9]} 16... b5 {[%clk 0:02:03.4]} 17.
axb5 {[%clk 0:01:33.3]} 17... axb5 {[%clk 0:02:00.5]} 18. Rxa8 {[%clk
0:01:26.1]} 18... Rxa8 {[%clk 0:01:59]} 19. Nxb5 {[%clk 0:01:26.8]} 19... f6
{[%clk 0:01:40.8]} 20. Re1 {[%clk 0:01:19.4]} 20... e5 {[%clk 0:01:38.2]} 21.
Qb3 {[%clk 0:01:09.3]} 21... Kh8 {[%clk 0:01:32.3]} 22. Nba3 {[%clk 0:01:03.4]}
22... Rb8 {[%clk 0:01:25.7]} 23. Qc2 {[%clk 0:01:03.3]} 23... Qb7 {[%clk
0:01:20.8]} 24. h3 {[%clk 0:00:59.3]} 24... Qb3 {[%clk 0:01:13.5]} 25. Qe2
{[%clk 0:00:55.2]} 25... Nxc3 {[%clk 0:00:55.5]} 26. bxc3 {[%clk 0:00:53.8]}
26... Qxc3 {[%clk 0:00:53.9]} 27. Qe4 {[%clk 0:00:48.5]} 27... Nd4 {[%clk
0:00:40.3]} 28. Kh2 {[%clk 0:00:44.1]} 28... Rb3 {[%clk 0:00:26.4]} 29. Qa8+
{[%clk 0:00:38.7]} 1-0

[Event "*** Titled Tuesday Blitz"]
[Site "Chess.com"]
[Date "2020.04.07"]
[Round "7"]
[White "Semen16"]
[Black "Haykos"]
[Result "0-1"]
[WhiteElo "2402"]
[BlackElo "2592"]
[TimeControl "180+1"]
[EndTime "14:17:44 PDT"]
[Termination "Haykos won by resignation"]

1. e4 {[%clk 0:03:00.9]} 1... c5 {[%clk 0:03:00.3]} 2. c3 {[%clk 0:03:00.7]}
2... d5 {[%clk 0:03:00.3]} 3. exd5 {[%clk 0:03:00.6]} 3... Qxd5 {[%clk
0:03:01.2]} 4. d4 {[%clk 0:03:00.9]} 4... Nc6 {[%clk 0:03:01.2]} 5. Nf3 {[%clk
0:03:00.4]} 5... Bg4 {[%clk 0:03:01.8]} 6. Be2 {[%clk 0:03:00.3]} 6... e6 {[%clk
0:03:01.7]} 7. O-O {[%clk 0:02:57.3]} 7... Nf6 {[%clk 0:03:01.7]} 8. h3 {[%clk
0:02:57.5]} 8... Bh5 {[%clk 0:03:01.8]} 9. Na3 {[%clk 0:02:55.7]} 9... cxd4
{[%clk 0:03:01.5]} 10. Nb5 {[%clk 0:02:55.1]} 10... Qd7 {[%clk 0:02:55.5]} 11.
Nbxd4 {[%clk 0:02:53.7]} 11... Nxd4 {[%clk 0:02:54.5]} 12. Nxd4 {[%clk
0:02:53.2]} 12... Bxe2 {[%clk 0:02:54.4]} 13. Qxe2 {[%clk 0:02:53.2]} 13... Bc5
{[%clk 0:02:53.9]} 14. Rd1 {[%clk 0:02:53.1]} 14... O-O {[%clk 0:02:48.4]} 15.
Nb3 {[%clk 0:02:51.6]} 15... Qc6 {[%clk 0:02:49]} 16. Nxc5 {[%clk 0:02:51.2]}
16... Qxc5 {[%clk 0:02:49.9]} 17. Be3 {[%clk 0:02:50.6]} 17... Qf5 {[%clk
0:02:49.3]} 18. Rd2 {[%clk 0:02:48.4]} 18... Rfd8 {[%clk 0:02:48.2]} 19. Rad1
{[%clk 0:02:47.9]} 19... Rxd2 {[%clk 0:02:48.8]} 20. Qxd2 {[%clk 0:02:47.7]}
20... h6 {[%clk 0:02:47.9]} 21. Qd6 {[%clk 0:02:44.7]} 21... Nd5 {[%clk
0:02:45.8]} 22. c4 {[%clk 0:02:28.7]} 22... Nxe3 {[%clk 0:02:41.2]} 23. fxe3
{[%clk 0:02:28.4]} 23... Qc2 {[%clk 0:02:37.9]} 24. Qd4 {[%clk 0:02:23.8]} 24...
Rc8 {[%clk 0:02:20.9]} 25. Rd3 {[%clk 0:02:09.9]} 25... Rxc4 {[%clk 0:02:14.9]}
26. Qd8+ {[%clk 0:02:07.7]} 26... Kh7 {[%clk 0:02:14.6]} 27. Rb3 {[%clk
0:02:05.7]} 27... b6 {[%clk 0:02:00]} 28. Qd7 {[%clk 0:02:02.6]} 28... Qf5
{[%clk 0:01:52.9]} 29. Qd1 {[%clk 0:01:37.2]} 29... Rc2 {[%clk 0:01:44.1]} 30.
Kh1 {[%clk 0:01:26.2]} 30... Qf2 {[%clk 0:01:41.1]} 31. Qg4 {[%clk 0:01:20.3]}
31... f5 {[%clk 0:01:29.6]} 32. Qf3 {[%clk 0:01:13.2]} 32... Qxf3 {[%clk
0:01:27.2]} 33. gxf3 {[%clk 0:01:13.1]} 33... Kg6 {[%clk 0:01:26.8]} 34. Rb4
{[%clk 0:01:10.8]} 34... Rf2 {[%clk 0:01:21]} 35. f4 {[%clk 0:01:07.3]} 35...
Rf3 {[%clk 0:01:14.7]} 36. Kg2 {[%clk 0:01:06.4]} 36... Rxe3 {[%clk 0:01:15.1]}
37. Rb5 {[%clk 0:01:03.6]} 37... Kf6 {[%clk 0:01:12.7]} 38. b3 {[%clk
0:00:58.5]} 38... Re2+ {[%clk 0:01:12.1]} 39. Kf3 {[%clk 0:00:57.4]} 39... Rxa2
{[%clk 0:01:12.4]} 40. Rb4 {[%clk 0:00:56.6]} 40... Rh2 {[%clk 0:01:10.8]} 41.
Kg3 {[%clk 0:00:56.1]} 41... Rc2 {[%clk 0:01:07.3]} 42. Ra4 {[%clk 0:00:55.4]}
42... Rc3+ {[%clk 0:01:07.4]} 43. Kg2 {[%clk 0:00:54.3]} 43... a5 {[%clk
0:01:07.4]} 44. Ra3 {[%clk 0:00:52.7]} 44... Rd3 {[%clk 0:01:02.2]} 45. Kh2
{[%clk 0:00:46.4]} 45... Rf3 {[%clk 0:01:02.5]} 46. Ra4 {[%clk 0:00:45.8]} 46...
Rxb3 {[%clk 0:01:01.8]} 47. Kg2 {[%clk 0:00:45.7]} 47... Rb4 {[%clk 0:01:00.1]}
0-1

[Event "*** Titled Tuesday Blitz"]
[Site "Chess.com"]
[Date "2020.04.07"]
[Round "7"]
[White "DraskovicL"]
[Black "RojonR"]
[Result "1-0"]
[WhiteElo "2564"]
[BlackElo "2396"]
[TimeControl "180+1"]
[EndTime "14:17:47 PDT"]
[Termination "DraskovicL won on time"]

1. c4 {[%clk 0:03:00.9]} 1... Nf6 {[%clk 0:02:56]} 2. Nf3 {[%clk 0:03:01]} 2...
e6 {[%clk 0:02:53.5]} 3. b3 {[%clk 0:02:59.5]} 3... d5 {[%clk 0:02:52.9]} 4. Bb2
{[%clk 0:02:59.6]} 4... Be7 {[%clk 0:02:52.3]} 5. e3 {[%clk 0:02:59.8]} 5... O-O
{[%clk 0:02:51.7]} 6. g3 {[%clk 0:03:00.2]} 6... c5 {[%clk 0:02:43.6]} 7. Bg2
{[%clk 0:03:00.2]} 7... Nc6 {[%clk 0:02:43.8]} 8. O-O {[%clk 0:03:00.4]} 8... b6
{[%clk 0:02:39.4]} 9. Nc3 {[%clk 0:02:57.6]} 9... Bb7 {[%clk 0:02:38.8]} 10.
cxd5 {[%clk 0:02:56.7]} 10... exd5 {[%clk 0:02:38.4]} 11. d4 {[%clk 0:02:56.5]}
11... Ne4 {[%clk 0:02:10.9]} 12. Rc1 {[%clk 0:02:46.5]} 12... cxd4 {[%clk
0:01:24.2]} 13. Nxe4 {[%clk 0:02:39.7]} 13... dxe4 {[%clk 0:01:22.3]} 14. Nxd4
{[%clk 0:02:39.8]} 14... Nxd4 {[%clk 0:01:18.9]} 15. Qxd4 {[%clk 0:02:40.7]}
15... Qxd4 {[%clk 0:00:59.3]} 16. Bxd4 {[%clk 0:02:41.6]} 16... Rac8 {[%clk
0:00:57.4]} 17. Bh3 {[%clk 0:02:37.9]} 17... Rxc1 {[%clk 0:00:34.9]} 18. Rxc1
{[%clk 0:02:38.8]} 18... Bd6 {[%clk 0:00:34.9]} 19. Bd7 {[%clk 0:02:20.9]} 19...
Rd8 {[%clk 0:00:25]} 20. Bb5 {[%clk 0:02:17.3]} 20... Kf8 {[%clk 0:00:19.7]} 21.
Kf1 {[%clk 0:02:13.2]} 21... f6 {[%clk 0:00:19.6]} 22. Ke2 {[%clk 0:02:10.7]}
22... Ke7 {[%clk 0:00:19.7]} 23. Rc2 {[%clk 0:02:06.7]} 23... Rc8 {[%clk
0:00:19.2]} 24. Rxc8 {[%clk 0:02:05.5]} 24... Bxc8 {[%clk 0:00:20.1]} 25. Bc6
{[%clk 0:02:06]} 25... f5 {[%clk 0:00:18.5]} 26. Bxg7 {[%clk 0:02:04.1]} 26...
Ba6+ {[%clk 0:00:17.9]} 27. Kd2 {[%clk 0:02:04]} 27... Bb4+ {[%clk 0:00:16.6]}
28. Bc3 {[%clk 0:02:03.6]} 28... Bc5 {[%clk 0:00:16]} 29. Bd5 {[%clk 0:01:56.5]}
29... Bc8 {[%clk 0:00:14.7]} 30. Bg8 {[%clk 0:01:52.1]} 30... h5 {[%clk
0:00:14.1]} 31. h4 {[%clk 0:01:51.7]} 31... a5 {[%clk 0:00:10.8]} 32. Bc4 {[%clk
0:01:49.2]} 32... Kd6 {[%clk 0:00:08.3]} 33. Be2 {[%clk 0:01:49]} 33... Be6
{[%clk 0:00:06.4]} 34. Bxh5 {[%clk 0:01:48.9]} 34... Ba3 {[%clk 0:00:03.9]} 35.
Be2 {[%clk 0:01:46.1]} 35... a4 {[%clk 0:00:03.3]} 36. bxa4 {[%clk 0:01:41.6]}
36... Bxa2 {[%clk 0:00:04.2]} 37. h5 {[%clk 0:01:41.9]} 37... Bg8 {[%clk
0:00:04.3]} 38. h6 {[%clk 0:01:39.9]} 38... Kc5 {[%clk 0:00:01.1]} 39. Bb5
{[%clk 0:01:31.4]} 1-0

[Event "*** Titled Tuesday Blitz"]
[Site "Chess.com"]
[Date "2020.04.07"]
[Round "7"]
[White "VinzentSpitzl"]
[Black "mattcolins2025"]
[Result "0-1"]
[WhiteElo "2345"]
[BlackElo "2252"]
[TimeControl "180+1"]
[EndTime "14:17:49 PDT"]
[Termination "mattcolins2025 won by resignation"]

1. e4 {[%clk 0:03:00.9]} 1... c5 {[%clk 0:02:59.7]} 2. Nf3 {[%clk 0:03:01.1]}
2... e6 {[%clk 0:02:59.5]} 3. g3 {[%clk 0:02:59.5]} 3... Nc6 {[%clk 0:02:59.1]}
4. Bg2 {[%clk 0:02:59.5]} 4... Nf6 {[%clk 0:02:59.6]} 5. Qe2 {[%clk 0:02:58.7]}
5... d5 {[%clk 0:02:59.6]} 6. exd5 {[%clk 0:02:58.6]} 6... Nxd5 {[%clk
0:02:59.6]} 7. O-O {[%clk 0:02:55.8]} 7... Be7 {[%clk 0:02:58.6]} 8. Nc3 {[%clk
0:02:49.6]} 8... O-O {[%clk 0:02:56]} 9. Nxd5 {[%clk 0:02:46.6]} 9... exd5
{[%clk 0:02:56.9]} 10. d3 {[%clk 0:02:44.2]} 10... Bf6 {[%clk 0:02:56.4]} 11. c3
{[%clk 0:02:41.9]} 11... Bf5 {[%clk 0:02:54.9]} 12. Bf4 {[%clk 0:02:39.7]} 12...
Re8 {[%clk 0:02:53.4]} 13. Qd2 {[%clk 0:02:38.6]} 13... d4 {[%clk 0:02:51]} 14.
cxd4 {[%clk 0:02:34.2]} 14... cxd4 {[%clk 0:02:50.1]} 15. Rfe1 {[%clk
0:02:21.6]} 15... Qd7 {[%clk 0:02:49]} 16. Ng5 {[%clk 0:02:08.3]} 16... Be7
{[%clk 0:02:39.9]} 17. Ne4 {[%clk 0:02:05.6]} 17... Bb4 {[%clk 0:02:39.2]} 18.
Qc2 {[%clk 0:01:58.8]} 18... Bxe1 {[%clk 0:02:37.8]} 19. Rxe1 {[%clk 0:01:58.3]}
19... Bg6 {[%clk 0:02:35.3]} 20. Rc1 {[%clk 0:01:53.1]} 20... a5 {[%clk
0:02:25.9]} 21. Nc5 {[%clk 0:01:50.8]} 21... Qe7 {[%clk 0:02:22.4]} 22. Nxb7
{[%clk 0:01:37.8]} 22... Nb4 {[%clk 0:02:18.2]} 23. Qc4 {[%clk 0:01:32.4]} 23...
Bxd3 {[%clk 0:02:08.5]} 24. Qxd4 {[%clk 0:01:28.6]} 24... Rac8 {[%clk
0:02:03.4]} 25. Rd1 {[%clk 0:01:20.1]} 25... Ba6 {[%clk 0:01:26]} 26. Nd6 {[%clk
0:01:14.2]} 26... Rcd8 {[%clk 0:01:21.7]} 27. Qb6 {[%clk 0:00:46.5]} 27... Qe2
{[%clk 0:01:09.9]} 28. Rf1 {[%clk 0:00:38.3]} 28... Rf8 {[%clk 0:01:03.6]} 29.
Qxa5 {[%clk 0:00:35.6]} 29... Qxb2 {[%clk 0:00:59.6]} 30. Rd1 {[%clk 0:00:26.6]}
30... Be2 {[%clk 0:00:57]} 31. Re1 {[%clk 0:00:25.2]} 31... Nd3 {[%clk
0:00:55.9]} 32. Rxe2 {[%clk 0:00:15]} 32... Qxe2 {[%clk 0:00:54.6]} 33. Qb6
{[%clk 0:00:15.1]} 33... Nxf4 {[%clk 0:00:51.7]} 34. gxf4 {[%clk 0:00:14.6]}
34... Qd1+ {[%clk 0:00:51.9]} 0-1

[Event "*** Titled Tuesday Blitz"]
[Site "Chess.com"]
[Date "2020.04.07"]
[Round "7"]
[White "varacalli"]
[Black "MartinCerveny"]
[Result "0-1"]
[WhiteElo "2409"]
[BlackElo "2638"]
[TimeControl "180+1"]
[EndTime "14:17:50 PDT"]
[Termination "MartinCerveny won by resignation"]

1. e4 {[%clk 0:02:57.7]} 1... c5 {[%clk 0:02:59.6]} 2. Nf3 {[%clk 0:02:57.4]}
2... d6 {[%clk 0:02:59.8]} 3. d4 {[%clk 0:02:57.2]} 3... cxd4 {[%clk 0:03:00.7]}
4. Nxd4 {[%clk 0:02:58.1]} 4... Nf6 {[%clk 0:03:00.7]} 5. Nc3 {[%clk 0:02:58.8]}
5... a6 {[%clk 0:03:01.1]} 6. f4 {[%clk 0:02:59.4]} 6... e5 {[%clk 0:03:01]} 7.
Nf3 {[%clk 0:03:00.1]} 7... Nbd7 {[%clk 0:03:01.1]} 8. a4 {[%clk 0:03:00.8]}
8... Be7 {[%clk 0:02:57.6]} 9. Bd3 {[%clk 0:03:01.4]} 9... O-O {[%clk
0:02:57.3]} 10. O-O {[%clk 0:03:01.7]} 10... exf4 {[%clk 0:02:54.9]} 11. Bxf4
{[%clk 0:03:02.6]} 11... Nc5 {[%clk 0:02:55.1]} 12. Kh1 {[%clk 0:03:00.7]} 12...
Bg4 {[%clk 0:02:54.7]} 13. Qd2 {[%clk 0:02:59.4]} 13... Bh5 {[%clk 0:02:54.4]}
14. Rae1 {[%clk 0:02:57]} 14... Bg6 {[%clk 0:02:51.2]} 15. Nd4 {[%clk
0:02:56.6]} 15... Qb6 {[%clk 0:02:48]} 16. a5 {[%clk 0:02:44.3]} 16... Qxb2
{[%clk 0:01:59.6]} 17. Rb1 {[%clk 0:02:34.4]} 17... Qa3 {[%clk 0:01:59.3]} 18.
Bg5 {[%clk 0:02:20.3]} 18... Nxd3 {[%clk 0:01:32.9]} 19. cxd3 {[%clk 0:02:00.9]}
19... Rac8 {[%clk 0:01:30]} 20. Rb3 {[%clk 0:01:53]} 20... Qxa5 {[%clk 0:01:27]}
21. Nd5 {[%clk 0:01:38.3]} 21... Qd8 {[%clk 0:01:26.3]} 22. Nxe7+ {[%clk
0:01:31.6]} 22... Qxe7 {[%clk 0:01:24.5]} 23. h3 {[%clk 0:01:20.4]} 23... Rc5
{[%clk 0:01:22.2]} 24. Bxf6 {[%clk 0:01:15.7]} 24... gxf6 {[%clk 0:01:21.5]} 25.
Ra1 {[%clk 0:01:07.2]} 25... Qe5 {[%clk 0:01:17.5]} 26. Qe3 {[%clk 0:01:00.8]}
26... Rfc8 {[%clk 0:01:13.2]} 27. Rxb7 {[%clk 0:00:54.2]} 27... Rc3 {[%clk
0:01:01.2]} 28. Nf3 {[%clk 0:00:42.6]} 28... Qg3 {[%clk 0:00:56.2]} 29. Rd1
{[%clk 0:00:30.6]} 29... Rc2 {[%clk 0:00:54.8]} 30. Ne1 {[%clk 0:00:26.8]} 30...
Qxe3 {[%clk 0:00:53.1]} 31. Nxc2 {[%clk 0:00:27.1]} 31... Rxc2 {[%clk
0:00:51.9]} 32. Rb8+ {[%clk 0:00:28]} 32... Kg7 {[%clk 0:00:51.8]} 33. Rb2
{[%clk 0:00:24]} 33... Rxb2 {[%clk 0:00:51]} 0-1

[Event "*** Titled Tuesday Blitz"]
[Site "Chess.com"]
[Date "2020.04.07"]
[Round "7"]
[White "marianokar"]
[Black "mshuaau0"]
[Result "0-1"]
[WhiteElo "2354"]
[BlackElo "2220"]
[TimeControl "180+1"]
[EndTime "14:17:52 PDT"]
[Termination "mshuaau0 won by resignation"]

1. e4 {[%clk 0:03:00.9]} 1... e5 {[%clk 0:03:00.2]} 2. Nf3 {[%clk 0:03:00.2]}
2... Nc6 {[%clk 0:03:00.7]} 3. Bb5 {[%clk 0:02:58.8]} 3... a6 {[%clk 0:03:01]}
4. Ba4 {[%clk 0:02:55.6]} 4... Nf6 {[%clk 0:03:01]} 5. O-O {[%clk 0:02:54.3]}
5... Be7 {[%clk 0:03:01.4]} 6. Re1 {[%clk 0:02:54.2]} 6... b5 {[%clk 0:03:01.1]}
7. Bb3 {[%clk 0:02:54.6]} 7... d6 {[%clk 0:03:02]} 8. d3 {[%clk 0:02:52.8]} 8...
O-O {[%clk 0:02:59.2]} 9. c3 {[%clk 0:02:52.9]} 9... Re8 {[%clk 0:02:55.9]} 10.
Nbd2 {[%clk 0:02:53.1]} 10... Bf8 {[%clk 0:02:55.7]} 11. Nf1 {[%clk 0:02:53.6]}
11... g6 {[%clk 0:02:56]} 12. Ng3 {[%clk 0:02:53.9]} 12... Bg7 {[%clk
0:02:56.4]} 13. h3 {[%clk 0:02:53.6]} 13... Na5 {[%clk 0:02:55.1]} 14. Bc2
{[%clk 0:02:53]} 14... c5 {[%clk 0:02:55.4]} 15. d4 {[%clk 0:02:46.5]} 15...
cxd4 {[%clk 0:02:52.2]} 16. cxd4 {[%clk 0:02:47.4]} 16... exd4 {[%clk
0:02:52.3]} 17. Nxd4 {[%clk 0:02:47.8]} 17... Bb7 {[%clk 0:02:52.5]} 18. b3
{[%clk 0:02:31.8]} 18... d5 {[%clk 0:02:43.2]} 19. e5 {[%clk 0:02:29]} 19... Ne4
{[%clk 0:02:42.9]} 20. Bf4 {[%clk 0:01:58]} 20... g5 {[%clk 0:02:28]} 21. Be3
{[%clk 0:01:24.6]} 21... Bxe5 {[%clk 0:02:18.5]} 22. Qh5 {[%clk 0:01:08.5]}
22... Bxg3 {[%clk 0:02:06]} 23. fxg3 {[%clk 0:01:05.6]} 23... Qf6 {[%clk
0:01:57]} 24. Rf1 {[%clk 0:00:41.1]} 24... Qg6 {[%clk 0:01:56.8]} 25. Qf3 {[%clk
0:00:41.4]} 25... Rac8 {[%clk 0:01:54.6]} 26. Bd3 {[%clk 0:00:37.8]} 26... Rc3
{[%clk 0:01:50.1]} 27. Rad1 {[%clk 0:00:35.4]} 27... Nc6 {[%clk 0:01:28.9]} 28.
Nf5 {[%clk 0:00:30.4]} 28... Ne5 {[%clk 0:01:28.7]} 29. Qe2 {[%clk 0:00:23.7]}
29... Nxd3 {[%clk 0:01:16.7]} 30. Rxd3 {[%clk 0:00:24.6]} 30... Nxg3 {[%clk
0:01:06.7]} 31. Nxg3 {[%clk 0:00:17.8]} 31... Rxd3 {[%clk 0:01:06.1]} 32. Nf5
{[%clk 0:00:13.6]} 32... Rdxe3 {[%clk 0:01:05.7]} 33. Nxe3 {[%clk 0:00:12.5]}
33... d4 {[%clk 0:01:06]} 0-1

[Event "*** Titled Tuesday Blitz"]
[Site "Chess.com"]
[Date "2020.04.07"]
[Round "7"]
[White "UCantHandleDenker"]
[Black "Eltarolo"]
[Result "1-0"]
[WhiteElo "2493"]
[BlackElo "2320"]
[TimeControl "180+1"]
[EndTime "14:17:54 PDT"]
[Termination "UCantHandleDenker won on time"]

1. Nf3 {[%clk 0:02:58.1]} 1... d5 {[%clk 0:02:59.8]} 2. g3 {[%clk 0:02:57.7]}
2... Nf6 {[%clk 0:03:00.1]} 3. Bg2 {[%clk 0:02:58.1]} 3... c5 {[%clk 0:03:00.7]}
4. O-O {[%clk 0:02:59]} 4... Nc6 {[%clk 0:03:01.2]} 5. d3 {[%clk 0:02:59.6]}
5... Bg4 {[%clk 0:03:00.7]} 6. Nbd2 {[%clk 0:03:00.5]} 6... Qd7 {[%clk
0:02:59.6]} 7. h3 {[%clk 0:03:01.4]} 7... Bxh3 {[%clk 0:02:59.3]} 8. c4 {[%clk
0:02:58.5]} 8... d4 {[%clk 0:02:51.5]} 9. Ng5 {[%clk 0:02:42]} 9... Bxg2 {[%clk
0:02:46.3]} 10. Kxg2 {[%clk 0:02:42.9]} 10... e5 {[%clk 0:02:39.7]} 11. Rh1
{[%clk 0:02:38.7]} 11... Be7 {[%clk 0:02:35.1]} 12. a3 {[%clk 0:02:37.2]} 12...
h6 {[%clk 0:02:25.7]} 13. Rb1 {[%clk 0:02:18.1]} 13... Rf8 {[%clk 0:02:24.7]}
14. Ngf3 {[%clk 0:02:15.7]} 14... O-O-O {[%clk 0:02:07.9]} 15. b4 {[%clk
0:02:14]} 15... cxb4 {[%clk 0:02:02]} 16. axb4 {[%clk 0:02:14.9]} 16... Bxb4
{[%clk 0:02:02.1]} 17. Nxe5 {[%clk 0:02:12.1]} 17... Nxe5 {[%clk 0:02:01.7]} 18.
Rxb4 {[%clk 0:02:11.7]} 18... Qc6+ {[%clk 0:02:01.6]} 19. f3 {[%clk 0:02:09]}
19... Neg4 {[%clk 0:01:52]} 20. Nb3 {[%clk 0:02:08.3]} 20... Ne3+ {[%clk
0:01:04.9]} 21. Bxe3 {[%clk 0:02:07.2]} 21... dxe3 {[%clk 0:01:05.8]} 22. Na5
{[%clk 0:02:04.2]} 22... Qc5 {[%clk 0:00:57.5]} 23. Rb5 {[%clk 0:02:03.8]} 23...
Qd4 {[%clk 0:00:50.4]} 24. Nxb7 {[%clk 0:02:01.8]} 24... Rd7 {[%clk 0:00:43.4]}
25. Nc5 {[%clk 0:01:48.4]} 25... Rc7 {[%clk 0:00:39.8]} 26. Qb3 {[%clk
0:01:32.1]} 26... Rxc5 {[%clk 0:00:19]} 27. Rb8+ {[%clk 0:01:31.2]} 27... Kd7
{[%clk 0:00:19.6]} 28. Rxf8 {[%clk 0:01:30.6]} 28... Ke7 {[%clk 0:00:19.1]} 29.
Rb8 {[%clk 0:01:27.6]} 29... Nd7 {[%clk 0:00:18.1]} 30. Rb7 {[%clk 0:01:23]}
30... Rg5 {[%clk 0:00:17]} 31. Qb4+ {[%clk 0:01:19]} 31... Ke6 {[%clk
0:00:10.3]} 32. Qa4 {[%clk 0:01:08.2]} 32... Qd6 {[%clk 0:00:05.1]} 33. f4
{[%clk 0:01:01.9]} 33... Rg4 {[%clk 0:00:01]} 34. Rh5 {[%clk 0:00:59.2]} 1-0

[Event "*** Titled Tuesday Blitz"]
[Site "Chess.com"]
[Date "2020.04.07"]
[Round "7"]
[White "Magician4MA"]
[Black "aa175"]
[Result "1-0"]
[WhiteElo "2481"]
[BlackElo "2264"]
[TimeControl "180+1"]
[EndTime "14:17:56 PDT"]
[Termination "Magician4MA won on time"]

1. e4 {[%clk 0:03:00.9]} 1... c5 {[%clk 0:03:00.4]} 2. Nf3 {[%clk 0:02:56.2]}
2... d6 {[%clk 0:03:00.4]} 3. d4 {[%clk 0:02:54.8]} 3... cxd4 {[%clk 0:03:00.8]}
4. Nxd4 {[%clk 0:02:54.8]} 4... Nf6 {[%clk 0:03:01.4]} 5. Nc3 {[%clk 0:02:45.3]}
5... a6 {[%clk 0:03:01.8]} 6. Bg5 {[%clk 0:02:43.5]} 6... Nbd7 {[%clk
0:03:01.7]} 7. Bc4 {[%clk 0:02:38.3]} 7... Qb6 {[%clk 0:03:00.6]} 8. Bb3 {[%clk
0:02:35.6]} 8... e6 {[%clk 0:03:00.9]} 9. Qd2 {[%clk 0:02:28.7]} 9... Be7 {[%clk
0:03:00.5]} 10. O-O-O {[%clk 0:02:27.5]} 10... O-O {[%clk 0:02:56.8]} 11. g4
{[%clk 0:02:23.9]} 11... Nc5 {[%clk 0:02:54.9]} 12. f3 {[%clk 0:02:20.8]} 12...
Qc7 {[%clk 0:02:54.1]} 13. h4 {[%clk 0:02:17]} 13... b5 {[%clk 0:02:53.5]} 14.
Kb1 {[%clk 0:01:56.3]} 14... Bd7 {[%clk 0:02:40.3]} 15. h5 {[%clk 0:01:40.5]}
15... b4 {[%clk 0:02:32]} 16. Nce2 {[%clk 0:01:39.1]} 16... a5 {[%clk
0:02:31.4]} 17. Bxf6 {[%clk 0:01:19.3]} 17... Bxf6 {[%clk 0:02:30]} 18. g5
{[%clk 0:01:19.2]} 18... Bxd4 {[%clk 0:02:00.5]} 19. Qxd4 {[%clk 0:01:16.6]}
19... a4 {[%clk 0:01:55.9]} 20. Bc4 {[%clk 0:01:16.2]} 20... b3 {[%clk
0:01:36.8]} 21. h6 {[%clk 0:00:54.7]} 21... bxc2+ {[%clk 0:01:19.4]} 22. Kxc2
{[%clk 0:00:54.3]} 22... e5 {[%clk 0:00:30.6]} 23. Qxd6 {[%clk 0:00:53.1]} 23...
Qa5 {[%clk 0:00:30.1]} 24. Qxe5 {[%clk 0:00:49.6]} 24... Ne6 {[%clk 0:00:05.2]}
25. Qxa5 {[%clk 0:00:46.6]} 25... Rxa5 {[%clk 0:00:06.1]} 26. Rxd7 {[%clk
0:00:45.2]} 26... Rc8 {[%clk 0:00:03.7]} 27. b3 {[%clk 0:00:38.2]} 27... axb3+
{[%clk 0:00:02.7]} 28. axb3 {[%clk 0:00:38.2]} 28... Ra2+ {[%clk 0:00:01.8]} 29.
Kb1 {[%clk 0:00:37.4]} 1-0